bitfinex-derivatives/quotes_SOLF0:USTF0_20250416
["timestamp","ask_amount","ask_price","bid_price","bid_amount"]
[1744827021240,1.57245066,127.19,127.16,48.5713604]
[1744827021449,1.57245066,127.19,127.16,48.62739735]
[1744827021752,1.57245066,127.19,127.18,7.8627]
[1744827021953,1.57245066,127.19,127.16,0.05603695]
[1744827022343,5.066e-05,127.19,127.17,48.5713604]
[1744827022546,48.5713604,127.31,127.17,48.5713604]
[1744827022745,12.697,127.31,127.26,7.8577]
[1744827022947,12.697,127.31,127.27,0.05625082]
[1744827023147,48.5713604,127.44,127.27,48.62761122]
[1744827023148,103.0113604,127.39,127.27,48.62761122]
[1744827023455,48.5713604,127.35,127.32,0.04958603]
[1744827023653,4.0945,127.37,127.32,0.05189668]
[1744827024350,54.44,127.47,127.33,48.5713604]
[1744827024547,62.8149,127.47,127.38,0.05586146]
[1744827024745,70.6598,127.47,127.38,0.05586146]
[1744827024947,8.3749,127.47,127.39,48.5713604]
[1744827025155,8.3749,127.47,127.41,48.5713604]
[1744827025347,8.3749,127.47,127.44,7.8466]
[1744827025348,4.0945,127.47,127.44,7.8466]
[1744827025654,54.53531895,127.45,127.44,62.2466]
[1744827026053,54.53531895,127.45,127.44,110.8179604]
[1744827026349,54.53531895,127.45,127.44,54.4]
[1744827026550,41.35561895,127.45,127.44,102.9713604]
[1744827026855,8.4588,127.53,127.44,54.4]
[1744827027155,8.4588,127.53,127.47,0.05204827]
[1744827027351,4.0945,127.53,127.47,0.05204827]
[1744827027948,4.0945,127.53,127.48,7.8439]
[1744827028147,4.2804,127.56,127.51,48.5713604]
[1744827028354,4.2804,127.56,127.52,0.05876159]
[1744827029550,4.1552,127.61,127.55,48.5713604]
[1744827029746,8.5858,127.65,127.58,48.5713604]
[1744827029952,8.5858,127.65,127.6,48.62628708]
[1744827030256,8.5858,127.65,127.6,0.05492668]
[1744827030755,48.5713604,127.61,127.43,54.14]
[1744827030953,48.5713604,127.62,127.48,48.5713604]
[1744827030954,48.5713604,127.59,127.48,48.5713604]
[1744827031147,48.5713604,127.62,127.5,48.5713604]
[1744827031349,565.8,127.63,127.52,48.5713604]
[1744827031551,102.7113604,127.64,127.54,48.5713604]
[1744827031756,0.05045464,127.6,127.58,0.06017867]
[1744827032555,0.05045464,127.6,127.59,48.5713604]
[1744827032757,54.08,127.7,127.59,48.5713604]
[1744827032953,54.08,127.7,127.62,48.5713604]
[1744827033252,8.3085,127.72,127.62,48.5713604]
[1744827033654,8.3085,127.72,127.64,48.5713604]
[1744827033849,8.3085,127.72,127.66,0.05570368]
[1744827034152,54.08,127.8,127.68,48.5713604]
[1744827034460,4.3183,127.79,127.73,0.05880828]
[1744827035259,48.5713604,127.78,127.69,7.8312]
[1744827035552,4.3183,127.79,127.7,48.5713604]
[1744827035752,7.8231,127.83,127.76,7.827]
[1744827035954,565.32,127.84,127.74,48.5713604]
[1744827036254,54.06,127.85,127.76,48.5713604]
[1744827036455,8.6904,127.86,127.76,48.5713604]
[1744827036657,0.05103169,127.82,127.79,0.05905475]
[1744827036858,4.077,127.92,127.81,48.5713604]
[1744827037058,4.077,127.92,127.84,48.5713604]
[1744827037253,4.077,127.92,127.81,48.5713604]
[1744827037655,4.077,127.92,127.85,48.5713604]
[1744827037857,48.5713604,127.96,127.85,48.5713604]
[1744827037858,7.8156,127.95,127.88,7.8194]
[1744827038055,4.3721,127.97,127.9,0.05727148]
[1744827038255,4.077,128.02,127.93,48.5713604]
[1744827038455,4.077,128.02,127.96,0.04967266]
[1744827039154,48.5713604,127.97,127.74,48.5713604]
[1744827039359,7.8176,127.92,127.86,7.8204]
[1744827039555,4.0431,127.96,127.83,48.5713604]
[1744827039749,568.557,128.02,127.85,48.5713604]
[1744827039954,1.37355024,128.01,127.81,54.0]
[1744827040161,618.02,128.22,127.99,48.5713604]
[1744827040357,1.36043784,128.07,128.02,48.5713604]
[1744827040562,0.05000436,128.06,128.05,48.5713604]
[1744827040860,0.05000436,128.06,128.03,48.62439794]
[1744827041255,0.05000436,128.06,128.03,0.05303754]
[1744827041459,54.01000436,128.06,128.03,0.05303754]
[1744827041653,4.3599,128.05,127.96,48.5713604]
[1744827041858,48.5713604,128.04,127.88,53.96]
[1744827042150,4.1912,128.04,127.93,48.5713604]
[1744827042354,4.3599,128.05,127.99,48.5713604]
[1744827042555,52.9312604,128.05,127.92,48.5713604]
[1744827042755,52.9312604,128.05,127.86,48.5713604]
[1744827042756,616.8225604,128.04,127.89,48.5713604]
[1744827042957,568.2512,128.04,127.92,48.5713604]
[1744827043152,48.5713604,128.02,127.89,48.5713604]
[1744827043357,48.5713604,127.99,127.86,48.5713604]
[1744827043558,7.8142,127.97,127.86,48.5713604]
[1744827043762,7.8142,127.97,127.85,53.94]
[1744827043763,0.0584112,127.93,127.9,0.05738548]
[1744827043953,0.0584112,127.93,127.9,0.05996988]
[1744827044154,53.94,127.92,127.81,48.5713604]
[1744827044357,58.0321,127.92,127.79,48.5713604]
[1744827044553,48.5713604,127.87,127.69,563.66]
[1744827044767,53.94,127.86,127.76,48.5713604]
[1744827045057,48.5713604,128.04,127.85,48.5713604]
[1744827045261,0.0582987,127.96,127.93,48.62142156]
[1744827045458,4.2698,128.02,127.85,53.94]
[1744827045660,48.5713604,127.98,127.85,102.5113604]
[1744827045860,0.05406047,127.95,127.92,0.05745613]
[1744827046061,48.62542087,127.95,127.83,48.5713604]
[1744827046261,48.5713604,127.92,127.8,48.5713604]
[1744827046461,48.5713604,127.89,127.77,48.5713604]
[1744827046663,563.38,127.88,127.69,4.2711]
[1744827046860,48.5713604,127.86,127.69,4.2711]
[1744827047165,0.05099435,127.81,127.79,0.0568391]
[1744827047361,58.1554,127.85,127.79,0.0568391]
[1744827047562,53.9,127.93,127.82,48.5713604]
[1744827048061,48.5713604,127.88,127.76,48.5713604]
[1744827048264,48.5713604,127.84,127.72,48.5713604]
[1744827048565,106.6351604,127.87,127.74,48.5713604]
[1744827048761,48.5713604,127.92,127.77,0.0513257]
[1744827048968,48.5713604,127.95,127.75,53.9]
[1744827049161,57.2054604,127.91,127.8,48.5713604]
[1744827049366,53.9,127.96,127.87,48.5713604]
[1744827049566,4.2582,128.01,127.9,48.5713604]
[1744827049961,0.05155391,127.97,127.94,0.05727004]
[1744827050261,7.8178,127.92,127.86,56.3921604]
[1744827050459,7.8178,127.92,127.8,48.5713604]
[1744827050460,48.5713604,127.92,127.8,48.5713604]
[1744827050659,8.2265,127.91,127.8,48.5713604]
[1744827050865,7.8222,127.84,127.78,48.5713604]
[1744827051165,102.4713604,127.9,127.78,48.5713604]
[1744827051366,102.4713604,127.9,127.75,7.8271]
[1744827051367,7.8243,127.81,127.75,7.8271]
[1744827051767,0.05743825,127.79,127.77,48.63030638]
[1744827051969,53.9,127.9,127.8,48.5713604]
[1744827052864,0.05469222,127.86,127.84,0.0568758]
[1744827053064,0.05469222,127.86,127.78,56.3969604]
[1744827053265,48.5713604,127.88,127.77,53.9]
[1744827053462,48.5713604,127.86,127.75,7.8274]
[1744827053662,48.5713604,127.84,127.72,102.4713604]
[1744827053967,48.5713604,127.8,127.7,7.8305]
[1744827054170,53.9,127.79,127.67,53.9]
[1744827054558,48.5713604,127.78,127.67,53.9]
[1744827054761,48.5713604,127.74,127.57,53.9]
[1744827054962,7.8301,127.71,127.63,48.5713604]
[1744827055164,0.05851661,127.68,127.66,0.05581143]
[1744827055464,0.05851661,127.68,127.67,7.8325]
[1744827055771,0.05851661,127.68,127.66,0.05581143]
[1744827055971,7.8325,127.67,127.66,0.05581143]
[1744827056271,0.05851661,127.68,127.57,53.9]
[1744827056478,53.92,127.67,127.55,48.5713604]
[1744827056667,53.92,127.67,127.58,48.5713604]
[1744827056866,53.92,127.72,127.64,48.5713604]
[1744827057072,53.92,127.84,127.69,48.5713604]
[1744827057273,102.4913604,127.84,127.73,48.5713604]
[1744827057472,0.05621545,127.75,127.73,0.05333948]
[1744827058371,7.8282,127.74,127.73,0.05333948]
[1744827058573,7.8282,127.74,127.7,48.5713604]
[1744827058574,7.87621545,127.75,127.65,48.5713604]
[1744827058771,7.8325,127.67,127.6,48.5713604]
[1744827058967,54.4,127.71,127.62,48.5713604]
[1744827059178,7.8287,127.74,127.68,56.4030604]
[1744827059371,563.5,127.76,127.68,48.5713604]
[1744827059571,0.05607662,127.73,127.71,0.05435277]
[1744827059975,0.05607662,127.73,127.65,7.8337]
[1744827060175,48.5713604,127.74,127.62,48.5713604]
[1744827060372,612.0713604,127.76,127.64,48.5713604]
[1744827060573,7.831,127.7,127.65,7.8336]
[1744827060774,563.5,127.76,127.68,48.5713604]
[1744827060974,563.5,127.76,127.61,54.4]
[1744827061174,48.5713604,127.73,127.61,48.5713604]
[1744827061481,58.5914,127.77,127.7,48.5713604]
[1744827061671,48.5713604,127.76,127.66,48.5713604]
[1744827061872,48.5713604,127.74,127.62,48.5713604]
[1744827062072,7.8329,127.67,127.62,7.8351]
[1744827062369,563.6,127.74,127.64,48.5713604]
[1744827062577,54.42,127.76,127.69,48.5713604]
[1744827062871,4.1914,127.77,127.71,48.5713604]
[1744827063071,48.5713604,127.82,127.69,48.5713604]
[1744827063072,54.42,127.82,127.76,7.8267]
[1744827063272,8.5533,127.85,127.77,48.5713604]
[1744827063474,0.05219187,127.82,127.8,0.05356818]
[1744827063884,0.05219187,127.82,127.81,48.5713604]
[1744827064072,54.42,127.9,127.85,7.8214]
[1744827064299,8.4871,127.92,127.85,48.5713604]
[1744827064489,8.4871,127.92,127.83,48.5713604]
[1744827064670,8.4871,127.92,127.83,7.8227]
[1744827064873,8.4871,127.92,127.83,48.5713604]
[1744827065078,0.05340075,127.89,127.86,0.0537315]
[1744827065674,48.5713604,127.87,127.75,48.5713604]
[1744827065878,54.42,127.89,127.75,48.5713604]
[1744827066180,54.42,127.89,127.8,48.5713604]
[1744827066380,48.5713604,127.87,127.76,48.5713604]
[1744827066674,54.42,127.89,127.8,0.0505004]
[1744827066675,0.0594965,127.83,127.8,0.0505004]
[1744827066873,4.0248,127.84,127.74,48.5713604]
[1744827067176,0.0551635,127.8,127.78,0.05992731]
[1744827067679,1.56445556,127.84,127.79,48.5713604]
[1744827067870,1.56445556,127.84,127.83,7.8227]
[1744827068070,1.56445556,127.84,127.79,48.5713604]
[1744827068275,4.3622,127.92,127.83,48.5713604]
[1744827068575,488.0,128.12,127.9,48.5713604]
[1744827068776,4.2104,128.03,127.92,48.5713604]
[1744827068977,0.05752471,128.01,127.94,48.5713604]
[1744827069281,4.2104,128.03,127.96,0.05188122]
[1744827069282,0.05174256,127.99,127.96,0.05188122]
[1744827069481,0.05652357,127.99,127.86,48.5713604]
[1744827069684,48.5713604,127.93,127.82,48.5713604]
[1744827069985,104.33206421,127.98,127.82,48.5713604]
[1744827070180,48.5713604,127.93,127.83,48.5713604]
[1744827070383,48.5713604,127.93,127.81,48.5713604]
[1744827070581,0.05421593,127.88,127.86,0.05414876]
[1744827070880,0.05269601,127.88,127.86,7.87484876]
[1744827071077,54.38,127.93,127.87,9.08599375]
[1744827071981,4.1161,127.97,127.88,48.5713604]
[1744827072185,0.05768743,127.94,127.91,0.05963501]
[1744827072484,48.5713604,127.93,127.87,9.08599375]
[1744827072672,107.0674604,127.97,127.87,9.08599375]
[1744827072872,4.164,128.02,127.88,54.38]
[1744827073080,7.811,128.03,127.97,7.8137]
[1744827073282,7.811,128.03,127.96,48.5713604]
[1744827073283,52.7353604,128.07,127.96,48.5713604]
[1744827073477,48.5713604,127.99,127.88,54.38]
[1744827073683,48.5713604,127.97,127.86,48.5713604]
[1744827074184,48.5713604,127.93,127.83,54.36]
[1744827074385,48.5713604,127.95,127.84,48.5713604]
[1744827074892,48.62632809,127.96,127.86,48.5713604]
[1744827075184,48.62632809,127.96,127.9,48.5713604]
[1744827075185,0.05496769,127.96,127.9,48.5713604]
[1744827075380,0.05496769,127.96,127.9,48.8491204]
[1744827075780,0.05496769,127.96,127.9,0.27776]
[1744827075983,48.62632809,127.96,127.9,0.27776]
[1744827076284,48.5713604,127.92,127.81,9.08599375]
[1744827076488,48.5713604,127.86,127.81,9.08599375]
[1744827076783,48.5713604,127.84,127.8,27.73120522]
[1744827076984,48.5713604,127.84,127.78,108.54415429]
[1744827076985,48.5713604,127.82,127.78,108.54415429]
[1744827077374,7.8245,127.8,127.78,108.54415429]
[1744827077777,159.3227208,127.8,127.76,180.90692382]
[1744827077981,7.8264,127.77,127.76,10.80063224]
[1744827078182,54.36,127.8,127.76,10.80063224]
[1744827078379,7.827,127.76,127.75,0.05831225]
[1744827078580,48.5713604,127.77,127.66,4.2556]
[1744827078780,48.5713604,127.74,127.65,108.97718734]
[1744827078980,48.5713604,127.76,127.65,108.97718734]
[1744827079180,54.36,127.8,127.65,108.97718734]
[1744827079387,54.38,127.85,127.76,48.5713604]
[1744827079578,54.38,127.85,127.74,102.9513604]
[1744827079784,0.05217548,127.82,127.79,0.06021416]
[1744827080284,563.18,127.89,127.8,48.5713604]
[1744827080482,563.18,127.89,127.74,48.5713604]
[1744827080483,48.5713604,127.85,127.74,48.5713604]
[1744827080677,617.56,127.89,127.76,48.5713604]
[1744827080881,617.56,127.89,127.8,48.5713604]
[1744827081086,54.38,127.89,127.84,7.822]
[1744827081286,0.05158118,127.88,127.85,0.05778064]
[1744827081687,7.8206,127.87,127.85,0.05778064]
[1744827081986,48.62294158,127.88,127.85,0.00560516]
[1744827082185,7.8207,127.87,127.85,0.00560516]
[1744827082581,48.62294158,127.88,127.85,0.00560516]
[1744827082887,97.1427208,127.86,127.72,56.9880604]
[1744827083091,567.4976,127.87,127.76,48.5713604]
[1744827083291,567.4976,127.87,127.78,48.5713604]
[1744827083482,48.5713604,127.82,127.72,8.4167]
[1744827083678,7.8247,127.8,127.75,7.8276]
[1744827083883,7.8247,127.8,127.72,56.9880604]
[1744827083884,0.05287203,127.78,127.76,0.06008709]
[1744827084188,0.05287203,127.78,127.77,7.8264]
[1744827084389,567.4976,127.87,127.76,0.06008709]
[1744827084390,567.4976,127.87,127.76,56.45144749]
[1744827084589,567.4976,127.87,127.78,48.5713604]
[1744827084788,7.8216,127.85,127.8,7.8241]
[1744827084994,48.5713604,127.85,127.72,111.3680604]
[1744827085292,7.8237,127.82,127.77,7.8262]
[1744827085484,0.05361909,127.8,127.77,0.04934201]
[1744827085680,0.05361909,127.8,127.77,0.05420464]
[1744827086285,48.5713604,127.79,127.77,0.00133261]
[1744827086491,7.8257,127.78,127.77,0.00133261]
[1744827086687,56.3913604,127.79,127.67,54.38]
[1744827086888,7.8302,127.71,127.67,7.8321]
[1744827087093,48.5713604,127.71,127.62,54.38]
[1744827087293,48.5713604,127.71,127.6,4.347]
[1744827087586,48.5713604,127.69,127.6,4.347]
[1744827087794,48.5713604,127.65,127.63,0.05792326]
[1744827087994,48.5713604,127.67,127.57,8.5442]
[1744827088185,0.05037557,127.65,127.63,0.05224732]
[1744827088384,7.88437557,127.65,127.63,0.05224732]
[1744827088589,0.05037557,127.65,127.63,0.05224732]
[1744827089190,15.6515,127.79,127.63,0.05224732]
[1744827089191,103.3913604,127.81,127.64,103.3913604]
[1744827089393,48.5713604,127.77,127.66,48.5713604]
[1744827089690,48.5713604,127.71,127.6,50.01023253]
[1744827089889,48.5713604,127.73,127.62,48.5713604]
[1744827089890,54.82,127.72,127.62,48.5713604]
[1744827090089,0.05526764,127.68,127.66,0.04938164]
[1744827090787,54.84,127.77,127.66,48.62074204]
[1744827090987,48.5713604,127.76,127.66,48.5713604]
[1744827091184,7.8284,127.74,127.66,48.5713604]
[1744827091391,48.5713604,127.75,127.65,54.84]
[1744827091587,54.84,127.77,127.65,54.84]
[1744827091988,4.3509,127.85,127.76,48.5713604]
[1744827092488,108.34172586,127.87,127.78,48.5713604]
[1744827092689,7.8209,127.86,127.81,7.8237]
[1744827092892,52.9280604,127.87,127.76,48.5713604]
[1744827093097,48.5713604,127.83,127.82,0.0598474]
[1744827093389,48.5713604,127.83,127.73,54.84]
[1744827093592,0.05903928,127.79,127.77,0.05304986]
[1744827093788,0.05858262,127.79,127.78,7.8257]
[1744827094501,54.82,127.89,127.78,7.82]
[1744827094702,54.82,127.89,127.8,48.5713604]
[1744827094909,103.3913604,127.89,127.79,58.86]
[1744827095092,48.5713604,127.85,127.75,612.1713604]
[1744827095296,48.5713604,127.85,127.74,54.82]
[1744827095496,0.04969553,127.81,127.79,0.05907288]
[1744827096596,7.87409553,127.81,127.79,0.05907288]
[1744827096802,0.04969553,127.81,127.79,0.05907288]
[1744827097103,103.3913604,127.83,127.79,0.05907288]
[1744827097104,4.3751,127.91,127.8,48.5713604]
[1744827097298,48.5713604,127.89,127.78,48.5713604]
[1744827097499,48.5713604,127.87,127.75,52.8388604]
[1744827097706,48.5713604,127.81,127.74,4.3706]
[1744827097897,48.5713604,127.85,127.75,48.5713604]
[1744827098101,0.05503093,127.81,127.79,0.05189575]
[1744827098905,54.82,127.8,127.69,63.2091]
[1744827099099,7.8276,127.76,127.71,7.8299]
[1744827099307,48.5713604,127.78,127.67,48.5713604]
[1744827100006,0.05338753,127.74,127.71,48.62320837]
[1744827100204,4.0082,127.84,127.73,48.5713604]
[1744827100403,4.0082,127.84,127.76,7.8268]
[1744827100605,48.5713604,127.8,127.72,4.2895]
[1744827100802,7.8255,127.79,127.73,7.8283]
[1744827100996,48.5713604,127.8,127.7,54.82]
[1744827101201,54.82,127.79,127.7,54.82]
[1744827101402,0.05468978,127.76,127.74,0.05691629]
[1744827103301,103.3913604,127.85,127.74,0.05691629]
[1744827103302,1.36238182,127.87,127.75,48.5713604]
[1744827103509,54.82,127.91,127.81,48.5713604]
[1744827103911,103.3913604,127.91,127.81,48.5713604]
[1744827104103,52.6862604,127.89,127.77,103.3913604]
[1744827104304,7.87949343,127.84,127.82,0.05631217]
[1744827104607,0.05968977,127.84,127.82,0.05631217]
[1744827105609,0.05968977,127.84,127.83,7.8227]
[1744827106704,62.638,127.91,127.86,7.8204]
[1744827107102,567.6331,127.95,127.85,48.5713604]
[1744827107103,563.6,127.95,127.85,48.5713604]
[1744827107308,54.82,127.96,127.87,48.5713604]
[1744827107502,54.82,127.96,127.85,48.5713604]
[1744827107811,0.05454252,127.92,127.89,0.05681447]
[1744827108998,0.05454252,127.92,127.91,7.8178]
[1744827109200,0.05454252,127.92,127.89,0.05681447]
[1744827109608,7.87214252,127.92,127.89,0.05681447]
[1744827109809,0.05454252,127.92,127.89,0.05681447]
[1744827110711,0.05454252,127.92,127.91,7.8178]
[1744827111508,0.05454252,127.92,127.89,0.05681447]
[1744827112307,7.8181,127.91,127.89,0.05681447]
[1744827112512,0.05454252,127.92,127.89,0.05681447]
[1744827113304,7.8184,127.9,127.89,0.05681447]
[1744827113508,48.5713604,127.91,127.82,4.329]
[1744827113714,52.5279604,127.91,127.84,7.8217]
[1744827114007,48.5713604,127.89,127.82,4.329]
[1744827114404,7.87185872,127.87,127.84,0.05348024]
[1744827114603,0.05125872,127.87,127.84,0.05348024]
[1744827115105,48.5713604,127.85,127.75,56.9980604]
[1744827115412,7.8245,127.8,127.77,7.8261]
[1744827115610,48.5713604,127.83,127.75,8.4267]
[1744827115810,48.5713604,127.83,127.74,4.0791]
[1744827116013,48.5713604,127.83,127.66,563.2]
[1744827116014,48.5713604,127.77,127.66,563.2]
[1744827116210,0.05390367,127.73,127.7,0.05992184]
[1744827116407,48.62526407,127.73,127.7,0.05992184]
[1744827116613,0.05390367,127.73,127.7,0.05992184]
[1744827116807,48.62526407,127.73,127.7,0.05992184]
[1744827117117,48.5713604,127.71,127.63,67.1431]
[1744827117312,103.3513604,127.71,127.63,4.0791]
[1744827117719,103.3513604,127.71,127.6,1.43887213]
[1744827117915,0.05858863,127.67,127.64,0.06013535]
[1744827118922,48.62994903,127.67,127.64,0.06013535]
[1744827119117,48.5713604,127.65,127.46,53.84]
[1744827119312,56.46994903,127.67,127.46,53.84]
[1744827119313,7.8386,127.58,127.49,52.8565604]
[1744827119510,53.84,127.64,127.55,48.5713604]
[1744827119709,53.84,127.64,127.57,48.5713604]
[1744827120119,53.84,127.7,127.59,48.5713604]
[1744827120421,53.84,127.7,127.6,48.5713604]
[1744827120722,102.4113604,127.7,127.58,8.2381]
[1744827120915,48.5713604,127.62,127.51,102.4113604]
[1744827121118,48.5713604,127.58,127.48,12.633]
[1744827121519,0.05319292,127.54,127.52,0.05735883]
[1744827121721,563.66,127.65,127.53,48.5713604]
[1744827122019,4.1696,127.7,127.6,48.5713604]
[1744827122215,53.86,127.72,127.64,48.5713604]
[1744827122416,162.01462586,127.77,127.66,48.5713604]
[1744827122719,0.05798808,127.73,127.7,0.05641538]
[1744827122919,163.57993853,127.77,127.7,0.05773516]
[1744827123126,48.5713604,127.71,127.6,48.5713604]
[1744827123420,102.4313604,127.71,127.6,48.5713604]
[1744827123626,48.5713604,127.69,127.57,12.633]
[1744827123819,48.5713604,127.67,127.57,12.633]
[1744827124020,48.5713604,127.69,127.58,48.5713604]
[1744827124320,0.05358383,127.65,127.62,0.0571988]
[1744827124518,0.05512977,127.65,127.62,0.05055542]
[1744827124717,53.86,127.71,127.62,48.62191582]
[1744827124912,53.86,127.71,127.59,53.88]
[1744827124913,53.86,127.71,127.64,48.5713604]
[1744827125523,55.44531267,127.77,127.68,48.5713604]
[1744827125822,0.05600145,127.74,127.71,0.05621059]
[1744827126125,5.58194855,127.84,127.73,48.5713604]
[1744827126320,4.2193,127.84,127.75,48.5713604]
[1744827126516,48.5713604,127.81,127.69,4.0668]
[1744827126724,48.5713604,127.77,127.69,4.0668]
[1744827126920,53.88,127.77,127.69,4.0668]
[1744827127121,102.4513604,127.82,127.72,0.05338809]
[1744827127331,102.4513604,127.82,127.71,48.5713604]
[1744827127714,53.88,127.82,127.75,48.5713604]
[1744827128022,53.88,127.82,127.73,48.5713604]
[1744827128322,0.05665178,127.79,127.76,0.04983778]
[1744827129819,0.05665178,127.79,127.78,7.8257]
[1744827130023,0.05665178,127.79,127.76,0.04983778]
[1744827130715,48.62801218,127.79,127.69,57.9268]
[1744827130921,48.5713604,127.77,127.69,4.0668]
[1744827131122,4.3295,127.78,127.69,4.0668]
[1744827131322,4.3295,127.78,127.69,52.6381604]
[1744827131522,4.3295,127.78,127.69,4.0668]
[1744827131725,7.8281,127.75,127.71,7.8299]
[1744827131923,7.88415771,127.75,127.72,0.06019475]
[1744827132124,0.05605771,127.75,127.72,0.06019475]
[1744827132424,48.5713604,127.73,127.61,48.5713604]
[1744827132728,7.831,127.7,127.65,7.8333]
[1744827132927,48.5713604,127.73,127.61,48.5713604]
[1744827133119,53.86,127.75,127.58,53.86]
[1744827133120,567.9895,127.78,127.69,48.5713604]
[1744827133325,0.0502004,127.75,127.72,0.04998394]
[1744827133527,53.86,127.74,127.63,48.5713604]
[1744827133826,7.83,127.72,127.63,48.5713604]
[1744827134125,48.5713604,127.73,127.63,48.5713604]
[1744827134331,48.5713604,127.71,127.62,7.8353]
[1744827134631,0.05451286,127.68,127.65,0.05427344]
[1744827134830,7.8331,127.66,127.65,0.05427344]
[1744827135629,7.84,127.66,127.51,102.4313604]
[1744827135929,7.8397,127.56,127.52,9.40988143]
[1744827136236,48.5713604,127.58,127.52,1.56838143]
[1744827136428,7.8409,127.54,127.52,1.56838143]
[1744827136621,0.05394376,127.56,127.52,1.56838143]
[1744827136822,0.05394376,127.56,127.52,1.6183378]
[1744827137125,0.05394376,127.56,127.26,303.56867675]
[1744827137126,48.5713604,127.53,127.31,108.8556307]
[1744827137325,48.5713604,127.46,127.35,48.5713604]
[1744827137526,53.88,127.45,127.35,48.5713604]
[1744827137722,53.88,127.45,127.37,48.5713604]
[1744827137925,563.82,127.49,127.41,48.5713604]
[1744827138130,0.05055185,127.46,127.44,0.05593466]
[1744827138427,0.05055185,127.46,127.44,0.05643014]
[1744827138428,0.05909752,127.46,127.44,0.05643014]
[1744827138633,61.7221,127.52,127.44,48.62779054]
[1744827138834,53.88,127.52,127.46,48.5713604]
[1744827139030,53.88,127.52,127.44,48.5713604]
[1744827139225,53.88,127.52,127.42,48.5713604]
[1744827139434,53.88,127.52,127.41,4.3411]
[1744827139435,48.5713604,127.51,127.41,4.3411]
[1744827139622,0.05920681,127.47,127.45,0.05605732]
[1744827141635,53.88,127.52,127.45,48.62741772]
[1744827141934,7.8405,127.54,127.47,7.8443]
[1744827142133,102.4913604,127.62,127.51,48.5713604]
[1744827142327,53.92,127.62,127.53,48.5713604]
[1744827142523,102.4913604,127.62,127.51,48.5713604]
[1744827142724,0.05200098,127.59,127.56,0.05430117]
[1744827143129,48.5713604,127.58,127.56,0.05430117]
[1744827143840,0.05200098,127.59,127.56,0.05430117]
[1744827144839,0.05200098,127.59,127.48,3.9592]
[1744827144840,48.5713604,127.58,127.48,3.9592]
[1744827145032,102.4913604,127.62,127.51,48.5713604]
[1744827145631,102.4913604,127.62,127.53,7.8409]
[1744827145837,48.5713604,127.6,127.53,7.8409]
[1744827146136,7.8392,127.56,127.55,0.05843846]
[1744827146327,102.5113604,127.56,127.55,0.05843846]
[1744827146531,53.94,127.56,127.55,0.05843846]
[1744827147337,102.5113604,127.56,127.55,0.05843846]
[1744827147535,110.3505604,127.56,127.55,0.05843846]
[1744827147940,7.8413,127.53,127.45,56.6738604]
[1744827148139,102.5113604,127.56,127.45,8.1025]
[1744827148438,53.94,127.56,127.45,56.6738604]
[1744827148639,53.94,127.56,127.47,48.5713604]
[1744827148933,53.94,127.56,127.45,56.6738604]
[1744827149141,0.05857992,127.53,127.5,0.05269562]
[1744827151139,0.05857992,127.53,127.5,7.89519562]
[1744827152141,0.05857992,127.53,127.5,0.05269562]
[1744827152743,7.8423,127.51,127.5,0.05269562]
[1744827153138,0.05857992,127.53,127.5,0.05269562]
[1744827154742,564.4,127.58,127.52,48.5713604]
[1744827155035,53.92,127.6,127.52,48.5713604]
[1744827155336,48.5713604,127.56,127.48,8.2451]
[1744827155541,48.5713604,127.49,127.37,48.5713604]
[1744827155842,0.05937558,127.44,127.42,0.057243]
[1744827157742,7.8472,127.43,127.42,0.057243]
[1744827157943,0.05937558,127.44,127.42,0.057243]
[1744827158142,48.5713604,127.43,127.42,0.057243]
[1744827158348,102.5113604,127.43,127.34,4.1695]
[1744827158640,53.94,127.43,127.34,4.1695]
[1744827158843,53.94,127.43,127.27,48.5713604]
[1744827158844,48.5713604,127.39,127.27,48.5713604]
[1744827159045,48.5713604,127.39,127.28,8.1365]
[1744827159344,7.8511,127.37,127.28,8.1365]
[1744827159544,0.05792796,127.35,127.32,0.05851376]
[1744827160148,48.62928836,127.35,127.32,0.05851376]
[1744827161151,48.5713604,127.33,127.32,0.05851376]
[1744827161449,7.8533,127.34,127.32,0.05851376]
[1744827161648,0.05792796,127.35,127.32,0.05851376]
[1744827161850,48.5713604,127.33,127.19,53.96]
[1744827162047,48.5713604,127.31,127.2,61.5301604]
[1744827162549,7.8557,127.3,127.24,7.8585]